[Event "*** Titled Tuesday Blitz"]
[Site "Chess.com"]
[Date "2021.03.30"]
[Round "7"]
[White "MergenKakabaev"]
[Black "ehrenfeld"]
[Result "1-0"]
[WhiteElo "2394"]
[BlackElo "2500"]
[TimeControl "180+1"]
[EndTime "11:19:23 PDT"]
[Termination "MergenKakabaev won by resignation"]

1. e4 {[%clk 0:03:00.9]} 1... e5 {[%clk 0:02:59.4]} 2. Nf3 {[%clk 0:03:00.4]}
2... Nc6 {[%clk 0:02:58.3]} 3. Bb5 {[%clk 0:02:59.7]} 3... a6 {[%clk 0:02:58.2]}
4. Ba4 {[%clk 0:02:59.2]} 4... Nf6 {[%clk 0:02:58.3]} 5. O-O {[%clk 0:02:58.1]}
5... Be7 {[%clk 0:02:58.5]} 6. Re1 {[%clk 0:02:57.7]} 6... b5 {[%clk 0:02:58.3]}
7. Bb3 {[%clk 0:02:57.6]} 7... d6 {[%clk 0:02:58.9]} 8. c3 {[%clk 0:02:56.1]}
8... O-O {[%clk 0:02:58.8]} 9. h3 {[%clk 0:02:56.3]} 9... Na5 {[%clk 0:02:58.1]}
10. Bc2 {[%clk 0:02:55.1]} 10... c5 {[%clk 0:02:58.7]} 11. d4 {[%clk 0:02:55.1]}
11... Qc7 {[%clk 0:02:58.9]} 12. Nbd2 {[%clk 0:02:54.6]} 12... Bd7 {[%clk
0:02:58.4]} 13. b3 {[%clk 0:02:47]} 13... cxd4 {[%clk 0:02:50.3]} 14. cxd4
{[%clk 0:02:46]} 14... Rac8 {[%clk 0:02:45.8]} 15. dxe5 {[%clk 0:02:18]} 15...
dxe5 {[%clk 0:02:45.1]} 16. b4 {[%clk 0:02:11.7]} 16... Bxb4 {[%clk 0:02:33.2]}
17. Bb3 {[%clk 0:02:10.1]} 17... Nxb3 {[%clk 0:02:32.1]} 18. Qxb3 {[%clk
0:02:08.6]} 18... Bc3 {[%clk 0:02:23.7]} 19. Bb2 {[%clk 0:02:06.1]} 19... b4
{[%clk 0:02:08]} 20. Rac1 {[%clk 0:02:01.2]} 20... Be6 {[%clk 0:02:06.6]} 21.
Qa4 {[%clk 0:01:59.5]} 21... Qb6 {[%clk 0:01:49]} 22. Bxc3 {[%clk 0:01:41.8]}
22... bxc3 {[%clk 0:01:48.4]} 23. Nb1 {[%clk 0:01:40.8]} 23... Rc4 {[%clk
0:01:38]} 24. Qa3 {[%clk 0:01:33]} 24... Nxe4 {[%clk 0:01:23.3]} 25. Re3 {[%clk
0:01:12.5]} 25... c2 {[%clk 0:01:18.7]} 26. Nbd2 {[%clk 0:01:09.4]} 26... Nxd2
{[%clk 0:01:16.3]} 27. Nxd2 {[%clk 0:01:10.3]} 27... Rc5 {[%clk 0:01:14.4]} 28.
Rc3 {[%clk 0:01:05.4]} 28... Rxc3 {[%clk 0:01:12.9]} 29. Qxc3 {[%clk 0:01:06.3]}
29... Rc8 {[%clk 0:01:12.7]} 30. Qxe5 {[%clk 0:01:04.2]} 30... Bxa2 {[%clk
0:01:07.7]} 31. Rxc2 {[%clk 0:01:02.6]} 31... Qe6 {[%clk 0:00:53.3]} 32. Rxc8+
{[%clk 0:00:36.9]} 32... Qxc8 {[%clk 0:00:52.1]} 33. Ne4 {[%clk 0:00:37.8]}
33... h6 {[%clk 0:00:47.8]} 34. Nd6 {[%clk 0:00:34.9]} 34... Qe6 {[%clk
0:00:46.5]} 35. Qc5 {[%clk 0:00:27.1]} 35... Bd5 {[%clk 0:00:44.6]} 36. g4
{[%clk 0:00:20.2]} 36... Qe1+ {[%clk 0:00:42.6]} 37. Kh2 {[%clk 0:00:20.1]}
37... Qh1+ {[%clk 0:00:42.7]} 38. Kg3 {[%clk 0:00:20.4]} 38... Qg2+ {[%clk
0:00:42.2]} 39. Kf4 {[%clk 0:00:20.8]} 39... Qf3+ {[%clk 0:00:41.1]} 40. Ke5
{[%clk 0:00:21]} 40... Be6 {[%clk 0:00:34]} 41. Ne4 {[%clk 0:00:20.3]} 41... Qb3
{[%clk 0:00:31.2]} 42. Kf4 {[%clk 0:00:18.5]} 42... Qxh3 {[%clk 0:00:28.2]} 43.
f3 {[%clk 0:00:18.6]} 43... Qh2+ {[%clk 0:00:27.8]} 44. Ke3 {[%clk 0:00:18.4]}
44... Qb8 {[%clk 0:00:26]} 45. Nd6 {[%clk 0:00:16.7]} 45... Qa8 {[%clk
0:00:24.1]} 46. Qe5 {[%clk 0:00:15.7]} 46... a5 {[%clk 0:00:23.2]} 47. f4 {[%clk
0:00:15.5]} 47... a4 {[%clk 0:00:20.2]} 48. f5 {[%clk 0:00:15.4]} 48... Bd5
{[%clk 0:00:19.6]} 49. f6 {[%clk 0:00:15]} 49... g6 {[%clk 0:00:16.1]} 50. g5
{[%clk 0:00:09.9]} 50... h5 {[%clk 0:00:14.5]} 51. Nb5 {[%clk 0:00:08.2]} 51...
Be6 {[%clk 0:00:12.4]} 52. Nc7 {[%clk 0:00:08.1]} 52... Qa7+ {[%clk 0:00:12.5]}
53. Kd2 {[%clk 0:00:07.7]} 53... Qf2+ {[%clk 0:00:10.9]} 54. Kc3 {[%clk
0:00:07.7]} 54... Qf3+ {[%clk 0:00:10.3]} 55. Kb4 {[%clk 0:00:07.1]} 55... Qc6
{[%clk 0:00:09.5]} 56. Nxe6 {[%clk 0:00:06.1]} 56... fxe6 {[%clk 0:00:08.1]} 57.
Qb8+ {[%clk 0:00:05.5]} 57... Kf7 {[%clk 0:00:07.8]} 58. Qa7+ {[%clk 0:00:05.7]}
1-0

[Event "*** Titled Tuesday Blitz"]
[Site "Chess.com"]
[Date "2021.03.30"]
[Round "7"]
[White "Taktikmonster"]
[Black "IljaJoke"]
[Result "1-0"]
[WhiteElo "2381"]
[BlackElo "2498"]
[TimeControl "180+1"]
[EndTime "11:19:23 PDT"]
[Termination "Taktikmonster won on time"]

1. e4 {[%clk 0:03:00.9]} 1... c5 {[%clk 0:02:59.9]} 2. Nf3 {[%clk 0:03:01.1]}
2... d6 {[%clk 0:03:00.4]} 3. d4 {[%clk 0:03:01.7]} 3... cxd4 {[%clk 0:03:01.3]}
4. Nxd4 {[%clk 0:03:02.5]} 4... Nf6 {[%clk 0:03:01.8]} 5. Nc3 {[%clk 0:03:03]}
5... a6 {[%clk 0:03:02.3]} 6. Be2 {[%clk 0:03:03.1]} 6... e5 {[%clk 0:03:02.5]}
7. Nb3 {[%clk 0:03:03.7]} 7... Be7 {[%clk 0:03:03.1]} 8. Be3 {[%clk 0:03:04.3]}
8... Be6 {[%clk 0:03:01.9]} 9. O-O {[%clk 0:03:04.9]} 9... O-O {[%clk
0:03:01.6]} 10. Qd3 {[%clk 0:03:05.4]} 10... Nbd7 {[%clk 0:03:00.3]} 11. Nd5
{[%clk 0:03:05.5]} 11... Bxd5 {[%clk 0:02:56.1]} 12. exd5 {[%clk 0:03:06.4]}
12... h5 {[%clk 0:02:47.3]} 13. h3 {[%clk 0:02:55.1]} 13... g6 {[%clk
0:02:38.3]} 14. c4 {[%clk 0:02:54.5]} 14... a5 {[%clk 0:02:30.9]} 15. Nd2 {[%clk
0:02:42.4]} 15... Nh7 {[%clk 0:02:27.5]} 16. f4 {[%clk 0:02:36.4]} 16... f5
{[%clk 0:02:23.4]} 17. fxe5 {[%clk 0:02:28.2]} 17... Nxe5 {[%clk 0:02:17.6]} 18.
Qb3 {[%clk 0:02:23.5]} 18... Bg5 {[%clk 0:02:02.8]} 19. Nf3 {[%clk 0:02:13.1]}
19... Bxe3+ {[%clk 0:01:54.7]} 20. Qxe3 {[%clk 0:02:14]} 20... Re8 {[%clk
0:01:51.7]} 21. Qd4 {[%clk 0:02:02]} 21... Nxf3+ {[%clk 0:01:49.9]} 22. Bxf3
{[%clk 0:02:01.9]} 22... Qf6 {[%clk 0:01:45.1]} 23. Qxf6 {[%clk 0:01:56.3]}
23... Nxf6 {[%clk 0:01:46]} 24. Rfe1 {[%clk 0:01:56.7]} 24... Kf7 {[%clk
0:01:44.3]} 25. Kf2 {[%clk 0:01:53]} 25... b6 {[%clk 0:01:43.4]} 26. b3 {[%clk
0:01:45.2]} 26... g5 {[%clk 0:01:40.1]} 27. g3 {[%clk 0:01:31.7]} 27... g4
{[%clk 0:01:39.4]} 28. hxg4 {[%clk 0:01:31.1]} 28... hxg4 {[%clk 0:01:39.7]} 29.
Bg2 {[%clk 0:01:30]} 29... Nh5 {[%clk 0:01:20.5]} 30. Re6 {[%clk 0:01:22.1]}
30... Rad8 {[%clk 0:01:09]} 31. Rae1 {[%clk 0:01:19.1]} 31... Ng7 {[%clk
0:01:08.5]} 32. Rxe8 {[%clk 0:01:11.3]} 32... Rxe8 {[%clk 0:01:09.4]} 33. Rh1
{[%clk 0:01:11.2]} 33... Kg6 {[%clk 0:01:05.6]} 34. a3 {[%clk 0:01:09.1]} 34...
Nh5 {[%clk 0:01:01.1]} 35. b4 {[%clk 0:00:55.4]} 35... axb4 {[%clk 0:00:55.3]}
36. axb4 {[%clk 0:00:56.3]} 36... Ra8 {[%clk 0:00:53.7]} 37. c5 {[%clk
0:00:21.3]} 37... Ra2+ {[%clk 0:00:52.9]} 38. Ke3 {[%clk 0:00:19.7]} 38... Rxg2
{[%clk 0:00:49.3]} 39. c6 {[%clk 0:00:11.3]} 39... Rc2 {[%clk 0:00:36.9]} 40.
Kd3 {[%clk 0:00:11.5]} 40... Ra2 {[%clk 0:00:29.6]} 41. Re1 {[%clk 0:00:07.1]}
41... Nxg3 {[%clk 0:00:19.8]} 42. Re6+ {[%clk 0:00:06.8]} 42... Kf7 {[%clk
0:00:19.8]} 43. Rxd6 {[%clk 0:00:05.8]} 43... Ra7 {[%clk 0:00:18.1]} 44. Kc4
{[%clk 0:00:02.8]} 44... Ne4 {[%clk 0:00:18]} 45. Rh6 {[%clk 0:00:01.9]} 45...
g3 {[%clk 0:00:18]} 46. Rh7+ {[%clk 0:00:02.2]} 46... Kg6 {[%clk 0:00:18.4]} 47.
Rxa7 {[%clk 0:00:03.1]} 47... g2 {[%clk 0:00:18.8]} 48. Ra1 {[%clk 0:00:03.8]}
48... Nd2+ {[%clk 0:00:17.7]} 49. Kb5 {[%clk 0:00:03.3]} 49... Nf1 {[%clk
0:00:18.6]} 50. c7 {[%clk 0:00:02.8]} 50... g1=Q {[%clk 0:00:18.9]} 51. c8=Q
{[%clk 0:00:03.7]} 51... Kf6 {[%clk 0:00:03.8]} 52. Qf8+ {[%clk 0:00:04]} 52...
Ke5 {[%clk 0:00:03.6]} 53. Re1+ {[%clk 0:00:04.1]} 53... Kf4 {[%clk 0:00:02]}
54. Qh6+ {[%clk 0:00:04.6]} 54... Kf3 {[%clk 0:00:02.1]} 55. Qh3+ {[%clk
0:00:04.6]} 55... Kf2 {[%clk 0:00:02.5]} 56. Rxf1+ {[%clk 0:00:04.7]} 56...
Qxf1+ {[%clk 0:00:02.7]} 57. Qxf1+ {[%clk 0:00:05.6]} 57... Kxf1 {[%clk
0:00:03.6]} 58. d6 {[%clk 0:00:06.4]} 58... f4 {[%clk 0:00:04.3]} 59. d7 {[%clk
0:00:07.3]} 59... f3 {[%clk 0:00:05.2]} 60. d8=Q {[%clk 0:00:08.2]} 60... f2
{[%clk 0:00:06.1]} 61. Qf6 {[%clk 0:00:08.8]} 61... Kg1 {[%clk 0:00:07]} 62.
Qxf2+ {[%clk 0:00:09.3]} 62... Kxf2 {[%clk 0:00:07.2]} 63. Kxb6 {[%clk
0:00:10.2]} 1-0

[Event "*** Titled Tuesday Blitz"]
[Site "Chess.com"]
[Date "2021.03.30"]
[Round "7"]
[White "UKR_Master"]
[Black "esapunov"]
[Result "0-1"]
[WhiteElo "2563"]
[BlackElo "2738"]
[TimeControl "180+1"]
[EndTime "11:19:25 PDT"]
[Termination "esapunov won by resignation"]

1. e4 {[%clk 0:03:00.9]} 1... c5 {[%clk 0:02:58.5]} 2. Nf3 {[%clk 0:02:59.6]}
2... d6 {[%clk 0:02:58.5]} 3. d4 {[%clk 0:02:57.8]} 3... cxd4 {[%clk 0:02:58.5]}
4. Nxd4 {[%clk 0:02:58.7]} 4... Nf6 {[%clk 0:02:58.8]} 5. f3 {[%clk 0:02:59.1]}
5... Nc6 {[%clk 0:02:58.2]} 6. c4 {[%clk 0:02:58.7]} 6... Nxd4 {[%clk
0:02:58.5]} 7. Qxd4 {[%clk 0:02:58.7]} 7... g6 {[%clk 0:02:59.2]} 8. Nc3 {[%clk
0:02:58.7]} 8... Bg7 {[%clk 0:02:59.6]} 9. Be3 {[%clk 0:02:59.2]} 9... O-O
{[%clk 0:02:59.9]} 10. Qd2 {[%clk 0:02:59.6]} 10... a5 {[%clk 0:02:59.9]} 11.
Be2 {[%clk 0:02:59.7]} 11... a4 {[%clk 0:03:00.3]} 12. Rc1 {[%clk 0:02:58.6]}
12... Qa5 {[%clk 0:03:00.4]} 13. O-O {[%clk 0:02:58.8]} 13... Bd7 {[%clk
0:03:00.3]} 14. Rfd1 {[%clk 0:02:56.9]} 14... Rfc8 {[%clk 0:03:00.4]} 15. Rc2
{[%clk 0:02:43.8]} 15... Be6 {[%clk 0:02:21.8]} 16. Rdc1 {[%clk 0:02:30.8]}
16... Kf8 {[%clk 0:01:22.7]} 17. Nd5 {[%clk 0:02:19.1]} 17... Qxd2 {[%clk
0:01:19.9]} 18. Bxd2 {[%clk 0:02:17.8]} 18... Nxd5 {[%clk 0:01:16.2]} 19. cxd5
{[%clk 0:02:17.3]} 19... Bd7 {[%clk 0:01:11.2]} 20. Rxc8+ {[%clk 0:01:59.7]}
20... Rxc8 {[%clk 0:01:10.5]} 21. Rxc8+ {[%clk 0:02:00.2]} 21... Bxc8 {[%clk
0:01:10.8]} 22. Bb5 {[%clk 0:02:00.6]} 22... Bxb2 {[%clk 0:01:08.6]} 23. Bxa4
{[%clk 0:02:00.9]} 23... f5 {[%clk 0:01:08.3]} 24. Kf2 {[%clk 0:01:52.7]} 24...
Kf7 {[%clk 0:01:06.3]} 25. Ke3 {[%clk 0:01:45.4]} 25... g5 {[%clk 0:01:02.1]}
26. Kd3 {[%clk 0:01:43]} 26... Kf6 {[%clk 0:00:52.7]} 27. Be1 {[%clk 0:01:38.9]}
27... h5 {[%clk 0:00:50.4]} 28. h4 {[%clk 0:01:36.6]} 28... fxe4+ {[%clk
0:00:50.4]} 29. fxe4 {[%clk 0:01:34.3]} 29... Be5 {[%clk 0:00:47.7]} 30. Be8
{[%clk 0:01:29.5]} 30... Bg4 {[%clk 0:00:46.2]} 31. a4 {[%clk 0:01:26.1]} 31...
e6 {[%clk 0:00:39.6]} 32. a5 {[%clk 0:01:13.3]} 32... exd5 {[%clk 0:00:38.1]}
33. exd5 {[%clk 0:01:13.9]} 33... Ke7 {[%clk 0:00:34.3]} 34. Bg6 {[%clk
0:00:40.7]} 34... Kf6 {[%clk 0:00:31.4]} 35. Be8 {[%clk 0:00:41.1]} 35... Bf5+
{[%clk 0:00:28.5]} 36. Kc4 {[%clk 0:00:39.6]} 36... Be4 {[%clk 0:00:24.5]} 37.
Bxh5 {[%clk 0:00:36.9]} 37... Bxg2 {[%clk 0:00:24.3]} 38. hxg5+ {[%clk
0:00:37.4]} 38... Kxg5 {[%clk 0:00:24.4]} 39. Bf7 {[%clk 0:00:27.7]} 39... Bf1+
{[%clk 0:00:24.1]} 40. Kb4 {[%clk 0:00:26]} 40... Kf4 {[%clk 0:00:23.7]} 41. Bh4
{[%clk 0:00:20.9]} 41... Ke4 {[%clk 0:00:22.5]} 42. Bd8 {[%clk 0:00:19.4]} 42...
Ba6 {[%clk 0:00:18.8]} 43. Bb6 {[%clk 0:00:19.2]} 43... Bd4 {[%clk 0:00:18.1]}
44. Bd8 {[%clk 0:00:18.9]} 44... Kd3 {[%clk 0:00:16.1]} 45. Bc7 {[%clk
0:00:18.1]} 45... Bc5+ {[%clk 0:00:16.3]} 46. Ka4 {[%clk 0:00:16.7]} 46... Kd4
{[%clk 0:00:16.6]} 47. Bd8 {[%clk 0:00:15]} 47... Bd3 {[%clk 0:00:15.5]} 48. Bc7
{[%clk 0:00:13.1]} 48... Kc4 {[%clk 0:00:15.8]} 49. a6 {[%clk 0:00:12.3]} 49...
bxa6 {[%clk 0:00:15.6]} 50. Ka5 {[%clk 0:00:12.5]} 50... Kd4 {[%clk 0:00:16.1]}
51. Be6 {[%clk 0:00:11.4]} 51... Bb5 {[%clk 0:00:15.8]} 52. Bf7 {[%clk
0:00:11.5]} 52... Kc4 {[%clk 0:00:16.2]} 53. Be6 {[%clk 0:00:09.6]} 53... Kd4
{[%clk 0:00:14.5]} 54. Bf7 {[%clk 0:00:09.1]} 54... Ke5 {[%clk 0:00:15.2]} 55.
Bg8 {[%clk 0:00:09]} 55... Bf2 {[%clk 0:00:14.8]} 56. Be6 {[%clk 0:00:09.1]}
56... Bc4 {[%clk 0:00:14.5]} 57. Bf7 {[%clk 0:00:08.1]} 57... Be1+ {[%clk
0:00:14.6]} 58. Kb6 {[%clk 0:00:08.1]} 58... a5 {[%clk 0:00:14.8]} 59. Kb7
{[%clk 0:00:06.6]} 59... a4 {[%clk 0:00:14.3]} 60. Kc8 {[%clk 0:00:04.6]} 60...
a3 {[%clk 0:00:13.5]} 61. Kd7 {[%clk 0:00:05]} 61... Bb4 {[%clk 0:00:14.1]} 62.
Bxd6+ {[%clk 0:00:02.6]} 62... Bxd6 {[%clk 0:00:12.3]} 63. Bg6 {[%clk
0:00:03.5]} 0-1

[Event "*** Titled Tuesday Blitz"]
[Site "Chess.com"]
[Date "2021.03.30"]
[Round "7"]
[White "Ze-Pequeno"]
[Black "viktorgen2021"]
[Result "1-0"]
[WhiteElo "2211"]
[BlackElo "2269"]
[TimeControl "180+1"]
[EndTime "11:19:29 PDT"]
[Termination "Ze-Pequeno won by checkmate"]

1. e4 {[%clk 0:03:00.9]} 1... c6 {[%clk 0:02:56.3]} 2. d4 {[%clk 0:03:00.4]}
2... d5 {[%clk 0:02:56.5]} 3. Nc3 {[%clk 0:03:01.3]} 3... dxe4 {[%clk
0:02:56.8]} 4. Nxe4 {[%clk 0:03:02.2]} 4... Nf6 {[%clk 0:02:57.5]} 5. Nxf6+
{[%clk 0:03:02.2]} 5... exf6 {[%clk 0:02:58]} 6. c3 {[%clk 0:03:03.1]} 6... Bd6
{[%clk 0:02:58.4]} 7. Bd3 {[%clk 0:03:02.3]} 7... O-O {[%clk 0:02:58.7]} 8. Qc2
{[%clk 0:03:03.2]} 8... Re8+ {[%clk 0:02:58.9]} 9. Ne2 {[%clk 0:03:04.1]} 9...
h5 {[%clk 0:02:59.5]} 10. O-O {[%clk 0:03:03]} 10... h4 {[%clk 0:02:56.7]} 11.
h3 {[%clk 0:03:02.5]} 11... Qc7 {[%clk 0:02:50.5]} 12. Bd2 {[%clk 0:02:45]}
12... Nd7 {[%clk 0:02:45.7]} 13. c4 {[%clk 0:02:42]} 13... c5 {[%clk 0:02:38.8]}
14. Rad1 {[%clk 0:02:29.9]} 14... b6 {[%clk 0:02:29.9]} 15. Bh7+ {[%clk
0:02:15.4]} 15... Kh8 {[%clk 0:02:27.5]} 16. Be4 {[%clk 0:02:16.3]} 16... Bb7
{[%clk 0:02:24.5]} 17. Bxb7 {[%clk 0:01:58.6]} 17... Qxb7 {[%clk 0:02:23.6]} 18.
Be3 {[%clk 0:01:57.4]} 18... cxd4 {[%clk 0:02:16.6]} 19. Nxd4 {[%clk 0:01:54]}
19... Bc5 {[%clk 0:01:57]} 20. Qf5 {[%clk 0:01:43.2]} 20... Kg8 {[%clk
0:01:50.3]} 21. Nb5 {[%clk 0:01:18.1]} 21... Ne5 {[%clk 0:01:42.7]} 22. Bxc5
{[%clk 0:01:15.2]} 22... bxc5 {[%clk 0:01:34.1]} 23. Nd6 {[%clk 0:01:07.7]}
23... Qxb2 {[%clk 0:01:33.4]} 24. Nxe8 {[%clk 0:01:05.5]} 24... Rxe8 {[%clk
0:01:34.3]} 25. Rfe1 {[%clk 0:00:49.9]} 25... Rf8 {[%clk 0:01:26.1]} 26. f4
{[%clk 0:00:36.3]} 26... Nxc4 {[%clk 0:01:20.5]} 27. Qxc5 {[%clk 0:00:35.9]}
27... Nd2 {[%clk 0:01:00.1]} 28. Qf2 {[%clk 0:00:29.9]} 28... Rd8 {[%clk
0:00:56.8]} 29. Kh1 {[%clk 0:00:17.9]} 29... Qc2 {[%clk 0:00:27.7]} 30. Rxd2
{[%clk 0:00:16.1]} 30... Qxd2 {[%clk 0:00:24.1]} 31. Re8+ {[%clk 0:00:15.6]}
31... Kh7 {[%clk 0:00:23.6]} 32. Qxh4+ {[%clk 0:00:15.4]} 32... Kg6 {[%clk
0:00:24.1]} 33. Qg4+ {[%clk 0:00:15.3]} 33... Kh6 {[%clk 0:00:23]} 34. Qh4+
{[%clk 0:00:14.3]} 34... Kg6 {[%clk 0:00:23.1]} 35. Rxd8 {[%clk 0:00:12.5]}
35... Qxd8 {[%clk 0:00:22.8]} 36. Qg4+ {[%clk 0:00:12.7]} 36... Kh6 {[%clk
0:00:21.1]} 37. Qh4+ {[%clk 0:00:12.6]} 37... Kg6 {[%clk 0:00:21.2]} 38. Kh2
{[%clk 0:00:12.8]} 38... Qd2 {[%clk 0:00:20.5]} 39. Qg4+ {[%clk 0:00:12.1]}
39... Kh7 {[%clk 0:00:19.6]} 40. Qh5+ {[%clk 0:00:11.8]} 40... Kg8 {[%clk
0:00:20]} 41. Qg4 {[%clk 0:00:11.2]} 41... Qxa2 {[%clk 0:00:19.7]} 42. Qc8+
{[%clk 0:00:10.7]} 42... Kh7 {[%clk 0:00:19.5]} 43. Qf5+ {[%clk 0:00:11]} 43...
g6 {[%clk 0:00:17.7]} 44. Qxf6 {[%clk 0:00:11]} 44... Qd5 {[%clk 0:00:17.5]} 45.
Qh4+ {[%clk 0:00:10.3]} 45... Kg7 {[%clk 0:00:17.4]} 46. Qe7 {[%clk 0:00:08.3]}
46... a5 {[%clk 0:00:16]} 47. Qa3 {[%clk 0:00:07.6]} 47... Qb5 {[%clk
0:00:12.6]} 48. Qc3+ {[%clk 0:00:07.2]} 48... Kh7 {[%clk 0:00:12.2]} 49. Qf6
{[%clk 0:00:07.4]} 49... Qb3 {[%clk 0:00:12.2]} 50. h4 {[%clk 0:00:06]} 50... a4
{[%clk 0:00:12.1]} 51. h5 {[%clk 0:00:06.2]} 51... a3 {[%clk 0:00:09.9]} 52.
hxg6+ {[%clk 0:00:06.3]} 52... fxg6 {[%clk 0:00:10.3]} 53. Qh4+ {[%clk
0:00:06.5]} 53... Kg8 {[%clk 0:00:09.7]} 54. Qe7 {[%clk 0:00:06.9]} 54... a2
{[%clk 0:00:08.4]} 55. Qd8+ {[%clk 0:00:06.8]} 55... Kf7 {[%clk 0:00:07.7]} 56.
Qd7+ {[%clk 0:00:06.3]} 56... Kf6 {[%clk 0:00:07.6]} 57. Qd6+ {[%clk 0:00:06.4]}
57... Qe6 {[%clk 0:00:07.8]} 58. Qd4+ {[%clk 0:00:05.9]} 58... Kf7 {[%clk
0:00:06.2]} 59. Qa7+ {[%clk 0:00:05.5]} 59... Kg8 {[%clk 0:00:05]} 60. Qb8+
{[%clk 0:00:05.6]} 60... Kh7 {[%clk 0:00:04.7]} 61. Qa7+ {[%clk 0:00:05.6]}
61... Kh6 {[%clk 0:00:04.2]} 62. Qd4 {[%clk 0:00:04.3]} 62... Qa6 {[%clk
0:00:03.8]} 63. Qh8# {[%clk 0:00:03.4]} 1-0

[Event "*** Titled Tuesday Blitz"]
[Site "Chess.com"]
[Date "2021.03.30"]
[Round "7"]
[White "Raud100"]
[Black "Titus369"]
[Result "1-0"]
[WhiteElo "2406"]
[BlackElo "2513"]
[TimeControl "180+1"]
[EndTime "11:19:32 PDT"]
[Termination "Raud100 won by checkmate"]

1. d4 {[%clk 0:02:58.5]} 1... d5 {[%clk 0:02:58.9]} 2. c4 {[%clk 0:02:52.7]}
2... e6 {[%clk 0:02:55.2]} 3. Nc3 {[%clk 0:02:52.2]} 3... Nf6 {[%clk 0:02:51.6]}
4. Bg5 {[%clk 0:02:52.5]} 4... Be7 {[%clk 0:02:49.3]} 5. e3 {[%clk 0:02:52.6]}
5... h6 {[%clk 0:02:48.4]} 6. Bh4 {[%clk 0:02:51.5]} 6... O-O {[%clk 0:02:47.9]}
7. Nf3 {[%clk 0:02:51.3]} 7... b6 {[%clk 0:02:41.4]} 8. Bd3 {[%clk 0:02:49.4]}
8... Bb7 {[%clk 0:02:37.9]} 9. O-O {[%clk 0:02:48.6]} 9... dxc4 {[%clk
0:02:33.2]} 10. Bxc4 {[%clk 0:02:49.5]} 10... c5 {[%clk 0:02:32.9]} 11. Qe2
{[%clk 0:02:49]} 11... Nbd7 {[%clk 0:02:24.6]} 12. Rfd1 {[%clk 0:02:48]} 12...
Rc8 {[%clk 0:02:16.2]} 13. Ba6 {[%clk 0:02:44.6]} 13... Bxa6 {[%clk 0:02:07.6]}
14. Qxa6 {[%clk 0:02:45.5]} 14... Qc7 {[%clk 0:01:59]} 15. Bg3 {[%clk
0:02:05.8]} 15... Qc6 {[%clk 0:01:56.3]} 16. Qxa7 {[%clk 0:02:05.3]} 16... Ra8
{[%clk 0:01:51.1]} 17. Qc7 {[%clk 0:02:04.5]} 17... Qxc7 {[%clk 0:01:46.5]} 18.
Bxc7 {[%clk 0:02:05.4]} 18... Rfc8 {[%clk 0:01:40.6]} 19. Bg3 {[%clk 0:02:02.3]}
19... cxd4 {[%clk 0:01:39.2]} 20. Nxd4 {[%clk 0:02:01]} 20... Nc5 {[%clk
0:01:35]} 21. f3 {[%clk 0:01:49.1]} 21... Na6 {[%clk 0:01:30.8]} 22. Rac1 {[%clk
0:01:43.8]} 22... Nb4 {[%clk 0:01:29.4]} 23. a3 {[%clk 0:01:42.8]} 23... Nbd5
{[%clk 0:01:26.1]} 24. Nxd5 {[%clk 0:01:34]} 24... Nxd5 {[%clk 0:01:23.2]} 25.
Bf2 {[%clk 0:01:25.6]} 25... Bg5 {[%clk 0:01:15.9]} 26. f4 {[%clk 0:01:18.5]}
26... Bf6 {[%clk 0:01:12.9]} 27. Rxc8+ {[%clk 0:00:58.1]} 27... Rxc8 {[%clk
0:01:11.4]} 28. g3 {[%clk 0:00:58]} 28... Bxd4 {[%clk 0:01:10.1]} 29. Rxd4
{[%clk 0:00:58.9]} 29... Rc1+ {[%clk 0:01:08.4]} 30. Kg2 {[%clk 0:00:57.1]}
30... Rc2 {[%clk 0:01:08.9]} 31. Kf3 {[%clk 0:00:53.3]} 31... Rxb2 {[%clk
0:01:03.7]} 32. e4 {[%clk 0:00:53.4]} 32... Rb3+ {[%clk 0:00:53.6]} 33. Ke2
{[%clk 0:00:48.1]} 33... Nc3+ {[%clk 0:00:52.9]} 34. Kd2 {[%clk 0:00:48.4]}
34... Nb5 {[%clk 0:00:47.5]} 35. Rb4 {[%clk 0:00:44.1]} 35... Rxb4 {[%clk
0:00:37.5]} 36. axb4 {[%clk 0:00:45]} 36... Nd6 {[%clk 0:00:38]} 37. Kd3 {[%clk
0:00:39.2]} 37... b5 {[%clk 0:00:35]} 38. Kd4 {[%clk 0:00:35.9]} 38... f6 {[%clk
0:00:29.6]} 39. e5 {[%clk 0:00:29]} 39... Nb7 {[%clk 0:00:23.5]} 40. exf6 {[%clk
0:00:24.1]} 40... gxf6 {[%clk 0:00:20.6]} 41. f5 {[%clk 0:00:24.2]} 41... Kf7
{[%clk 0:00:18.9]} 42. g4 {[%clk 0:00:20.5]} 42... exf5 {[%clk 0:00:15.7]} 43.
gxf5 {[%clk 0:00:20.7]} 43... Nd6 {[%clk 0:00:13.3]} 44. Kc5 {[%clk 0:00:19.8]}
44... Ne4+ {[%clk 0:00:09.9]} 45. Kxb5 {[%clk 0:00:15.9]} 45... Nxf2 {[%clk
0:00:10.8]} 46. Kc6 {[%clk 0:00:15.1]} 46... Ke7 {[%clk 0:00:06.9]} 47. b5
{[%clk 0:00:12.3]} 47... Nd3 {[%clk 0:00:07.1]} 48. b6 {[%clk 0:00:11.9]} 48...
Ne5+ {[%clk 0:00:01.4]} 49. Kc7 {[%clk 0:00:11.5]} 49... Nd7 {[%clk 0:00:02.3]}
50. b7 {[%clk 0:00:11.2]} 50... Ke8 {[%clk 0:00:02.2]} 51. Kd6 {[%clk
0:00:10.7]} 51... Kd8 {[%clk 0:00:02]} 52. Ke6 {[%clk 0:00:11.1]} 52... Ke8
{[%clk 0:00:02.5]} 53. h4 {[%clk 0:00:09.9]} 53... Kd8 {[%clk 0:00:02.6]} 54. h5
{[%clk 0:00:10.3]} 54... Kc7 {[%clk 0:00:02.9]} 55. Kf7 {[%clk 0:00:10.3]} 55...
Kxb7 {[%clk 0:00:02]} 56. Kg6 {[%clk 0:00:11.2]} 56... Kb6 {[%clk 0:00:02.4]}
57. Kxh6 {[%clk 0:00:12.1]} 57... Kc6 {[%clk 0:00:02.8]} 58. Kg6 {[%clk
0:00:12.9]} 58... Kd6 {[%clk 0:00:03.7]} 59. h6 {[%clk 0:00:13.4]} 59... Ke7
{[%clk 0:00:03.7]} 60. h7 {[%clk 0:00:12.3]} 60... Nf8+ {[%clk 0:00:04.1]} 61.
Kg7 {[%clk 0:00:13.2]} 61... Nxh7 {[%clk 0:00:04.5]} 62. Kxh7 {[%clk 0:00:13.9]}
62... Ke8 {[%clk 0:00:02.1]} 63. Kg6 {[%clk 0:00:12.5]} 63... Ke7 {[%clk
0:00:02.5]} 64. Kg7 {[%clk 0:00:12.3]} 64... Ke8 {[%clk 0:00:02.9]} 65. Kxf6
{[%clk 0:00:13.2]} 65... Kf8 {[%clk 0:00:03.3]} 66. Ke6 {[%clk 0:00:13.7]} 66...
Ke8 {[%clk 0:00:03.9]} 67. f6 {[%clk 0:00:13.7]} 67... Kf8 {[%clk 0:00:04.4]}
68. f7 {[%clk 0:00:14.3]} 68... Kg7 {[%clk 0:00:04.8]} 69. Ke7 {[%clk
0:00:15.2]} 69... Kg6 {[%clk 0:00:05.1]} 70. f8=Q {[%clk 0:00:15.9]} 70... Kh7
{[%clk 0:00:06]} 71. Qf4 {[%clk 0:00:15.2]} 71... Kg6 {[%clk 0:00:06.2]} 72. Ke6
{[%clk 0:00:14.4]} 72... Kh5 {[%clk 0:00:07.1]} 73. Qg3 {[%clk 0:00:14.5]} 73...
Kh6 {[%clk 0:00:06.9]} 74. Kf6 {[%clk 0:00:14.7]} 74... Kh7 {[%clk 0:00:07.8]}
75. Qg7# {[%clk 0:00:14.5]} 1-0